bitfinex/quotes_ETHUSD_20251117
["timestamp","ask_amount","ask_price","bid_price","bid_amount"]
[1763412180546,0.4674,2998.3,2997.0,0.22449201]
[1763412180853,0.4674,2998.3,2997.1,1.09489264]
[1763412181376,0.4674,2998.3,2997.0,0.68819201]
[1763412181377,0.405504,2998.2,2997.0,0.22449201]
[1763412181676,0.405504,2998.2,2996.9,1.78122005]
[1763412181677,0.405504,2998.2,2997.1,0.1879]
[1763412181887,0.6448,2997.2,2996.9,0.001]
[1763412182044,0.0625,2997.0,2996.9,0.001]
[1763412182244,0.0625,2997.0,2996.6,0.001]
[1763412182245,0.405504,2996.9,2996.6,0.001]
[1763412182447,0.4595,2996.7,2996.6,0.001]
[1763412182742,0.865004,2996.7,2996.6,0.001]
[1763412182959,1.332404,2996.7,2996.6,0.001]
[1763412183175,1.332404,2996.7,2996.3,0.001]
[1763412183176,0.405504,2996.6,2996.3,0.001]
[1763412183357,0.472004,2996.4,2996.3,0.001]
[1763412183570,0.405504,2996.1,2995.8,0.001]
[1763412183784,0.2507,2995.9,2995.8,0.001]
[1763412184182,0.7181,2995.9,2995.8,0.001]
[1763412184555,1.053204,2995.9,2995.8,0.001]
[1763412184777,2.13543173,2995.9,2995.8,0.001]
[1763412185445,0.405504,2995.8,2994.1,0.001]
[1763412185738,0.1803,2994.4,2994.1,0.001]
[1763412186188,0.4683,2994.3,2994.1,0.001]
[1763412187040,1.19141307,2994.3,2994.1,0.001]
[1763412187243,0.405504,2994.2,2994.1,0.001]
[1763412187487,0.405504,2994.2,2993.6,0.001]
[1763412187488,0.873804,2994.2,2993.6,0.001]
[1763412187647,0.873804,2994.2,2991.9,0.48]
[1763412187648,9.94987334,2993.7,2991.9,0.48]
[1763412187985,0.405504,2993.5,2992.1,0.48]
[1763412188190,0.405504,2993.5,2991.8,0.0773]
[1763412188351,0.405504,2993.3,2991.8,0.0773]
[1763412188868,0.405504,2993.1,2991.8,0.0773]
[1763412189043,1.21585747,2993.1,2991.8,0.0773]
[1763412189248,0.4683,2993.0,2991.8,0.0773]
[1763412189884,9.36356934,2993.2,2991.9,0.48]
[1763412189885,0.405504,2993.2,2991.9,0.48]
[1763412190071,0.4683,2993.1,2991.9,0.48]
[1763412191191,9.36356934,2993.6,2991.9,0.48]
[1763412191192,0.4683,2993.6,2991.9,0.48]
[1763412191370,0.4683,2993.5,2991.9,0.48]
[1763412191751,0.405504,2993.4,2991.9,0.48]
[1763412191952,1.42924133,2993.4,2991.9,0.48]
[1763412192254,0.4683,2993.3,2991.9,0.48]
[1763412193887,0.1808,2993.7,2991.9,0.48]
[1763412194085,9.54386934,2994.4,2993.2,0.183]
[1763412194086,0.4683,2994.3,2993.2,0.183]
[1763412194248,0.1803,2994.4,2993.2,0.183]
[1763412194249,0.1803,2994.4,2993.3,0.48]
[1763412194448,0.1808,2994.7,2993.3,0.48]
[1763412194875,0.002,2994.4,2993.3,0.48]
[1763412196050,0.4683,2994.3,2993.0,0.1938]
[1763412196854,0.002,2994.4,2993.0,0.6738]
[1763412197079,0.002,2994.4,2993.1,0.48]
[1763412197954,0.4731,2994.4,2993.1,0.48]
[1763412200463,0.405504,2994.3,2992.6,0.4586]
[1763412200700,0.1867,2993.2,2992.2,0.4731]
[1763412201001,0.1867,2993.2,2992.1,0.4586]
[1763412201204,0.6578,2993.2,2991.9,0.001]
[1763412201799,0.4711,2993.1,2991.9,0.001]
[1763412201959,0.1867,2993.2,2991.9,0.001]
[1763412202292,0.6578,2993.2,2992.1,0.4586]
[1763412203291,0.1867,2993.2,2992.1,0.4586]
[1763412203799,0.6578,2993.2,2992.1,0.4586]
[1763412204862,0.6578,2993.2,2991.9,0.001]
[1763412204863,0.4711,2993.1,2991.9,0.001]
[1763412205198,0.405504,2993.0,2991.9,0.001]
[1763412205396,0.405504,2992.8,2991.9,0.001]
[1763412205786,0.405504,2992.6,2991.9,0.001]
[1763412205984,0.4711,2992.5,2991.9,0.001]
[1763412206509,0.405504,2992.4,2991.9,0.001]
[1763412206861,0.4711,2992.3,2991.9,0.001]
[1763412207858,0.405504,2992.2,2991.9,0.001]
[1763412208341,0.405504,2992.0,2991.9,0.001]
[1763412208689,8.56007658,2993.1,2991.9,0.001]
[1763412208889,0.4711,2992.4,2991.9,0.001]
[1763412209523,0.405504,2992.3,2991.9,0.001]
[1763412209733,0.4711,2992.2,2991.9,0.001]
[1763412211310,0.405504,2992.1,2991.9,0.001]
[1763412211600,0.876604,2992.0,2991.9,0.001]
[1763412212096,1.352104,2992.0,2991.9,0.001]
[1763412213627,2.02363078,2992.0,2991.9,0.001]
[1763412213835,2.02363078,2992.0,2991.3,0.001]
[1763412213836,0.405504,2991.6,2991.3,0.001]
[1763412214036,0.881004,2991.4,2991.3,0.001]
[1763412214337,0.881004,2991.4,2990.2,0.2007]
[1763412214338,0.0899,2990.6,2990.2,0.001]
[1763412214566,8.54164721,2990.5,2989.6,0.001]
[1763412214832,0.585304,2989.7,2989.6,0.001]
[1763412215858,1.082304,2989.7,2989.6,0.001]
[1763412216035,1.74470276,2989.7,2989.6,0.001]
[1763412217728,1.082304,2989.7,2989.6,0.001]
[1763412219337,0.6768,2989.7,2989.6,0.001]
[1763412219510,2.06971201,2989.7,2989.6,0.001]
[1763412219734,2.71251601,2989.7,2989.6,0.001]
[1763412219940,1.97269301,2989.7,2989.6,0.001]
[1763412220134,0.0899,2990.6,2989.6,0.001]
[1763412220444,0.1715,2989.7,2989.6,0.001]
[1763412220644,0.405504,2989.9,2989.6,0.001]
[1763412221030,0.1715,2989.8,2989.6,0.001]
[1763412222423,0.902504,2989.7,2989.6,0.001]
[1763412223137,0.1715,2989.8,2989.6,0.001]
[1763412223335,0.6685,2989.8,2989.6,0.001]
[1763412223655,0.902504,2989.7,2989.6,0.001]
[1763412223856,0.405504,2989.7,2989.6,0.001]
[1763412224353,1.45366663,2989.7,2989.6,0.001]
[1763412224520,1.95066663,2989.7,2989.6,0.001]
[1763412224727,2.19616663,2989.7,2989.6,0.001]
[1763412225524,0.651004,2989.7,2989.6,0.001]
[1763412225935,1.145504,2989.7,2989.6,0.001]
[1763412227548,0.651004,2989.7,2989.6,0.001]
[1763412228188,1.145504,2989.7,2989.6,0.001]
[1763412228868,9.57912231,2989.9,2989.6,0.001]
[1763412229199,0.497,2989.8,2989.6,0.001]
[1763412229702,0.651004,2989.7,2989.6,0.001]
[1763412230062,1.145504,2989.7,2989.6,0.001]
[1763412231088,0.2455,2989.7,2989.6,0.001]
[1763412231288,0.74,2989.7,2989.6,0.001]
[1763412231480,0.2455,2989.7,2989.6,0.001]
[1763412231794,1.145504,2989.7,2989.6,0.001]
[1763412231959,1.3179548,2989.7,2989.6,0.001]
[1763412232159,0.1735,2989.9,2989.6,0.001]
[1763412232488,0.405504,2989.8,2989.6,0.001]
[1763412232695,0.2455,2989.7,2989.6,0.001]
[1763412232865,0.405504,2989.8,2989.6,0.001]
[1763412233266,0.2455,2989.7,2989.6,0.001]
[1763412234596,0.405504,2989.8,2989.6,0.001]
[1763412234802,0.002,2989.9,2989.7,0.9228]
[1763412234999,0.002,2989.9,2989.8,0.9228]
[1763412235198,0.002,2989.9,2989.8,0.4655]
[1763412235400,0.002,2989.9,2989.8,0.9228]
[1763412235600,0.002,2989.9,2989.8,0.4655]
[1763412236276,0.002,2989.9,2989.6,0.001]
[1763412236799,0.002,2989.9,2989.8,0.4655]
[1763412237417,0.002,2989.9,2989.8,0.9228]
[1763412237914,0.002,2989.9,2989.6,0.001]
[1763412238775,0.002,2989.9,2989.6,0.4583]
[1763412238977,0.002,2989.9,2989.6,0.001]
[1763412239178,0.002,2989.9,2989.8,0.4655]
[1763412240486,0.002,2989.9,2989.8,0.95624705]
[1763412240828,0.002,2990.5,2990.1,0.6584]
[1763412241126,0.002,2990.5,2989.6,2.37300914]
[1763412241127,0.002,2990.5,2989.6,1.19924611]
[1763412241281,0.405504,2990.4,2989.6,0.001]
[1763412241785,0.002,2990.5,2990.3,0.6584]
[1763412241985,0.002,2990.5,2989.7,0.4573]
[1763412242388,0.002,2990.5,2990.4,0.6584]
[1763412242619,0.002,2990.5,2990.4,1.85664611]
[1763412242786,0.002,2990.5,2990.4,3.68266925]
[1763412242997,0.002,2990.5,2990.4,2.48213769]
[1763412243314,0.002,2990.5,2990.4,4.3129472]
[1763412243516,9.40762231,2991.8,2990.4,4.3129472]
[1763412243517,9.40762231,2991.8,2990.4,1.57514505]
[1763412243686,9.40762231,2991.8,2990.8,1.20038421]
[1763412243886,9.40762231,2991.8,2990.9,0.21073769]
[1763412244300,9.40762231,2991.8,2990.8,0.4573]
[1763412244501,0.65492935,2992.0,2990.7,1.20038421]
[1763412244502,9.40762231,2991.4,2990.7,1.20038421]
[1763412244687,9.40762231,2991.4,2990.5,1.20038421]
[1763412244688,0.405504,2991.3,2990.5,1.20038421]
[1763412244888,9.83182555,2991.6,2990.4,1.85272926]
[1763412245089,0.405504,2991.9,2991.2,0.1929]
[1763412245482,0.405504,2991.9,2990.6,0.4573]
[1763412245676,0.405504,2991.9,2991.0,0.1929]
[1763412246098,0.405504,2991.9,2991.1,0.03343251]
[1763412246298,0.405504,2991.9,2991.0,0.6521]
[1763412246711,0.405504,2991.9,2991.0,0.83734842]
[1763412246911,0.405504,2991.9,2991.0,0.6521]
[1763412247304,0.405504,2991.9,2991.1,0.4592]
[1763412248345,0.407504,2991.9,2991.1,0.4592]
[1763412249001,0.002,2991.9,2991.1,0.4592]
[1763412250812,0.002,2991.9,2991.8,0.4874]
[1763412251352,0.002,2991.9,2991.8,0.9466]
[1763412252953,0.002,2991.9,2991.8,1.16129842]
[1763412253241,0.002,2992.2,2991.8,2.35379052]
[1763412253427,0.002,2992.2,2992.1,0.6803]
[1763412253820,0.002,2993.6,2992.1,1.1395]
[1763412253821,0.00157136,2993.6,2992.1,1.1395]
[1763412254153,0.4566,2993.5,2992.4,0.4874]
[1763412254542,0.405504,2993.2,2992.1,0.1929]
[1763412254743,0.405504,2993.0,2992.1,0.1929]
[1763412254935,1.02373296,2993.1,2992.2,0.4592]
[1763412255132,0.405504,2993.2,2992.2,0.4592]
[1763412255857,0.862104,2993.2,2992.2,0.4592]
[1763412256055,0.40707536,2993.6,2992.2,0.4592]
[1763412256458,0.00157136,2993.6,2992.2,0.4592]
[1763412257920,0.00157136,2993.6,2993.5,0.6633]
[1763412258335,0.00157136,2993.6,2993.5,1.1561]
[1763412260450,0.00157136,2993.6,2993.3,0.1939]
[1763412260654,0.40707536,2993.6,2992.7,0.1939]
[1763412260967,1.02389009,2993.5,2992.7,0.1939]
[1763412261677,1.02389009,2993.5,2992.7,0.6867]
[1763412261856,0.00157136,2993.6,2992.7,0.6867]
[1763412262057,0.00157136,2993.6,2992.8,0.4928]
[1763412262232,0.00157136,2993.6,2993.5,0.4694]
[1763412262966,0.00157136,2993.6,2993.1,0.4928]
[1763412263344,0.00157136,2993.6,2992.7,0.1939]
[1763412263674,0.405504,2993.5,2992.7,0.1939]
[1763412263884,0.405504,2993.5,2992.1,0.1929]
[1763412264085,0.405504,2992.7,2991.6,0.4928]
[1763412264833,0.405504,2992.5,2991.3,0.4928]
[1763412265771,0.45110668,2993.4,2991.3,0.4928]
[1763412265772,0.45110668,2993.4,2992.4,0.1949]
[1763412265944,0.405504,2993.5,2992.4,0.1949]
[1763412266150,1.45678095,2993.5,2992.4,0.1949]
[1763412266344,1.45678095,2993.5,2992.4,0.6877]
[1763412266345,1.05127695,2993.5,2992.4,0.6877]
[1763412266671,0.45547136,2993.6,2992.4,0.6877]
[1763412266844,0.45547136,2993.6,2992.4,0.1949]
[1763412267283,0.45547136,2993.6,2992.4,0.6877]
[1763412267284,0.00157136,2993.6,2992.4,0.6877]
[1763412267706,0.40707536,2993.6,2992.4,0.6877]
[1763412267863,0.86097536,2993.6,2992.4,0.6877]
[1763412268057,9.83182555,2993.4,2992.4,0.001]
[1763412268286,0.405504,2993.2,2992.4,0.001]
[1763412268590,0.85661068,2993.2,2992.4,0.001]
[1763412268796,0.405504,2993.0,2992.4,0.001]
[1763412269157,0.405504,2992.8,2992.4,0.001]
[1763412269686,0.859404,2992.8,2992.4,0.001]
[1763412270083,0.405504,2992.8,2992.4,0.001]
[1763412270397,0.4539,2993.2,2992.4,0.001]
[1763412270560,0.98318256,2993.3,2992.4,0.001]
[1763412270761,0.405504,2993.5,2992.4,0.001]
[1763412270762,0.405504,2993.4,2992.4,0.001]
[1763412271401,0.4539,2993.5,2992.4,0.03441799]
[1763412271704,0.4539,2993.5,2992.4,0.4938]
[1763412272065,9.91942555,2993.9,2992.4,0.4938]
[1763412272672,0.405504,2993.8,2992.4,0.4938]
[1763412273615,0.405504,2993.8,2992.5,0.03341687]
[1763412273909,0.405504,2993.8,2992.4,1.6862921]
[1763412274119,0.405504,2993.8,2992.5,0.25932847]
[1763412274421,0.0876,2993.9,2992.5,0.4928]
[1763412274422,0.193,2993.9,2992.5,0.4928]
[1763412274563,0.4539,2993.8,2992.5,0.4928]
[1763412275197,0.405504,2993.7,2992.5,1.6852921]
[1763412275580,0.405504,2993.7,2992.6,1.6852921]
[1763412275911,0.405504,2993.8,2992.6,0.4928]
[1763412276065,0.46337136,2993.6,2992.6,0.4928]
[1763412276271,0.00157136,2993.6,2992.6,0.66142921]
[1763412276467,0.00157136,2993.6,2993.5,0.1832]
[1763412276667,0.00157136,2993.6,2993.5,0.6373]
[1763412276911,0.00157136,2993.6,2993.5,1.1104]
[1763412277124,0.00157136,2993.6,2993.5,0.6563]
[1763412277414,0.00157136,2993.6,2993.5,0.84117921]
[1763412278111,0.00157136,2993.6,2993.3,1.09019264]
[1763412278316,0.00157136,2993.6,2993.5,0.4731]
[1763412279091,0.00157136,2993.6,2993.3,1.37890315]
[1763412279291,0.00157136,2993.6,2993.3,0.1832]
[1763412279904,0.00157136,2993.6,2993.5,0.4541]
[1763412280214,0.00157136,2993.6,2993.3,0.6563]
[1763412281176,0.00157136,2993.6,2993.5,0.4541]
[1763412281592,0.00157136,2993.6,2993.5,0.9272]
[1763412282185,0.00157136,2993.6,2993.5,0.4541]
[1763412283109,0.00157136,2993.6,2993.2,1.19570315]
[1763412283730,0.00157136,2993.6,2993.1,2.28589579]
[1763412283905,0.00157136,2993.6,2993.0,1.19570315]
[1763412284625,0.00157136,2993.6,2993.1,0.4731]
[1763412285391,0.00157136,2993.6,2993.0,1.19570315]
[1763412286220,0.00157136,2993.6,2993.1,0.4731]
[1763412287343,0.00157136,2993.6,2993.5,0.4541]
[1763412287821,0.00157136,2993.6,2993.5,0.9272]
[1763412289400,0.00157136,2993.6,2993.4,1.19570315]
[1763412289622,0.00157136,2993.6,2993.5,0.4541]
[1763412290028,0.00157136,2993.6,2993.5,0.9272]
[1763412290533,0.00157136,2993.6,2993.5,0.4541]
[1763412290733,0.00157136,2993.6,2993.5,1.64980315]
[1763412290895,0.00157136,2993.6,2993.5,2.4679411]
[1763412292045,0.00157136,2993.6,2993.5,1.27223795]
[1763412292243,0.00157136,2993.6,2993.5,0.4541]
[1763412292733,0.00157136,2993.6,2993.5,0.9272]
[1763412294344,0.00157136,2993.6,2993.5,2.12290315]
[1763412295136,0.00157136,2993.6,2993.5,1.19570315]
[1763412295848,0.00157136,2993.6,2993.5,1.64980315]
[1763412296954,0.00157136,2993.6,2993.5,2.12290315]
[1763412297339,0.00157136,2993.6,2993.5,2.60595036]
[1763412297524,0.00157136,2993.6,2993.5,2.31723985]
[1763412297714,0.28547136,2993.6,2993.5,0.90699264]
[1763412297918,0.00157136,2993.6,2993.5,0.90699264]
[1763412298820,0.00157136,2993.6,2993.5,2.10839651]
[1763412299652,0.00157136,2993.6,2993.5,2.10939651]
[1763412300240,0.00157136,2993.6,2993.5,1.36209264]
[1763412300446,0.002,2993.9,2993.6,0.90699264]
[1763412300616,0.002,2994.2,2993.8,0.4541]
[1763412300816,0.002,2994.2,2994.1,3.03768745]
[1763412301069,0.002,2994.2,2994.1,1.80065386]
[1763412301245,0.2859,2994.2,2994.1,1.20122616]
[1763412301555,0.002,2994.2,2994.1,1.20122616]
[1763412301956,0.002,2994.2,2994.0,1.80065386]
[1763412302121,0.002,2994.2,2994.1,2.25475386]
[1763412302322,0.002,2994.2,2994.1,0.4541]
[1763412302550,0.002,2994.2,2994.0,1.80065386]
[1763412302865,0.002,2994.2,2994.1,0.90079584]
[1763412303032,0.002,2994.2,2993.2,0.001]
[1763412303033,0.405504,2994.1,2993.2,0.001]
[1763412303354,0.405504,2993.5,2993.2,0.001]
[1763412303554,0.406604,2993.3,2992.3,0.001]
[1763412303854,0.513004,2993.0,2992.3,0.001]
[1763412304248,0.405504,2992.9,2992.3,0.001]
[1763412304463,0.405504,2992.5,2992.3,0.001]
[1763412304668,0.405504,2992.5,2992.0,0.001]
[1763412304822,0.405504,2992.3,2992.0,0.001]
[1763412305256,0.405504,2992.1,2992.0,0.001]
[1763412305636,0.3374,2992.1,2992.0,0.001]
[1763412305869,1.39928376,2992.1,2992.0,0.001]
[1763412306193,0.742904,2992.1,2992.0,0.001]
[1763412306542,0.405504,2992.1,2992.0,0.001]
[1763412306752,0.742904,2992.1,2992.0,0.001]
[1763412307849,0.405504,2992.0,2990.5,0.1832]
[1763412308161,0.405504,2991.6,2990.5,0.664]
[1763412308363,0.405504,2991.6,2990.5,0.91046539]
[1763412308545,0.405504,2991.6,2990.6,0.4808]
[1763412308745,0.0993,2991.9,2990.6,0.4808]
[1763412308957,0.405504,2991.8,2990.6,0.4808]
[1763412309916,0.0993,2991.9,2990.6,0.4808]
[1763412311350,0.405504,2991.8,2990.6,0.4808]
[1763412311547,0.405504,2991.8,2990.5,0.1832]
[1763412311548,10.13571344,2991.8,2990.5,0.1832]
[1763412311747,0.405504,2991.6,2990.5,0.1832]
[1763412312176,0.3374,2993.1,2991.5,0.6854]
[1763412312360,0.3374,2993.1,2991.6,0.4966]
[1763412312560,0.0881,2992.8,2991.6,0.9774]
[1763412312760,0.405504,2992.7,2991.6,0.9774]
[1763412312989,0.405504,2992.7,2991.6,0.4966]
[1763412313294,0.405504,2992.7,2991.7,0.4808]
[1763412313503,0.0881,2992.8,2991.7,0.4808]
[1763412313670,0.90273639,2994.7,2991.7,0.4808]
[1763412313671,0.3374,2993.4,2991.7,0.4808]
[1763412314591,0.3374,2993.9,2991.7,0.4808]
[1763412314790,0.3374,2993.8,2991.7,0.4808]
[1763412314976,0.3374,2993.8,2991.7,2.28145386]
[1763412315282,0.3374,2993.8,2991.8,1.22583729]
[1763412315490,0.3374,2993.8,2991.8,0.79964465]
[1763412315666,0.3374,2993.8,2991.9,0.4808]
[1763412316608,0.405504,2993.7,2991.9,0.4808]
[1763412317021,0.002,2993.0,2992.0,2.74106895]
[1763412317320,0.002,2993.0,2992.4,0.90699264]
[1763412317467,0.002,2993.0,2992.9,0.1888]
[1763412317903,0.002,2993.0,2992.9,0.6762]
[1763412318591,0.002,2993.0,2992.6,0.1813]
[1763412318805,0.002,2993.0,2992.3,0.1813]
[1763412318984,0.002,2993.0,2992.0,0.4874]
[1763412318985,0.0993,2992.9,2992.1,0.1813]
[1763412319188,0.405504,2992.8,2991.6,0.001]
[1763412319481,0.0993,2992.9,2991.7,0.4874]
[1763412320828,0.002,2993.0,2991.7,0.4874]
[1763412321210,0.002,2993.0,2992.9,0.1813]
[1763412321606,0.002,2993.3,2992.9,0.6687]
[1763412321806,0.002,2993.3,2993.0,0.52081129]
[1763412322011,0.002,2993.3,2993.0,0.4874]
[1763412322846,0.002,2993.6,2993.1,0.03341017]
[1763412323020,0.002,2993.6,2993.2,0.81024567]
[1763412323432,0.002,2993.6,2993.3,0.4874]
[1763412326314,0.002,2993.6,2992.9,0.6687]
[1763412326752,0.002,2993.6,2993.0,0.52081129]
[1763412327120,0.002,2993.6,2993.0,1.42780393]
[1763412327314,0.002,2993.6,2993.1,1.58759134]
[1763412327520,0.002,2994.4,2993.4,0.90699264]
[1763412327741,0.002,2994.4,2994.1,0.1813]
[1763412328055,0.002,2994.4,2994.1,0.6687]
[1763412328356,0.002,2994.7,2994.1,0.6687]
[1763412328357,0.002,2994.7,2994.2,1.39439264]
[1763412328529,0.002,2994.7,2994.3,1.58425021]
[1763412328733,0.002,2994.7,2994.4,0.4874]
[1763412328938,0.002,2994.7,2994.6,0.90699264]
[1763412329460,0.002,2994.7,2994.6,1.39439264]
[1763412330153,0.0921,2997.1,2994.7,0.892904]
[1763412330154,0.4375,2997.1,2994.7,0.892904]
[1763412330351,0.0921,2997.1,2995.9,0.1813]
[1763412330864,0.45110668,2997.8,2997.0,0.1813]
[1763412331037,0.3454,2998.1,2997.0,0.1813]
[1763412331242,0.3454,2997.9,2996.6,0.1813]
[1763412331645,0.3454,2998.3,2996.6,0.6687]
[1763412332032,0.002,2998.4,2996.6,0.6687]
[1763412332238,0.002,2998.4,2995.1,2.40038745]
[1763412332239,0.0921,2996.7,2995.5,0.1813]
[1763412333069,0.750904,2996.6,2995.2,0.1813]
[1763412333270,0.750904,2996.6,2994.9,0.4874]
[1763412333477,0.3454,2996.5,2995.1,0.1813]
[1763412334076,0.3454,2996.5,2994.9,0.4874]
[1763412334747,9.79831344,2996.4,2994.4,0.4874]
[1763412334962,0.405504,2996.2,2994.4,0.4874]
[1763412335363,0.3454,2996.1,2994.4,0.4874]
[1763412336760,0.405504,2996.0,2994.4,0.4874]
[1763412337264,0.1003,2995.9,2994.4,0.4874]
[1763412338252,1.01437134,2996.3,2994.4,0.4874]
[1763412338448,0.0941,2996.7,2994.8,1.31249664]
[1763412338654,0.0941,2996.7,2995.0,0.405504]
[1763412338862,0.0941,2996.7,2995.2,0.90699264]
[1763412339078,0.002,2996.7,2995.3,0.860504]
[1763412339276,0.002,2996.7,2995.6,0.90699264]
[1763412339700,0.002,2996.7,2996.6,0.182]
[1763412340067,0.002,2996.7,2996.6,0.637]
[1763412340295,0.002,2996.7,2996.6,0.182]
[1763412340493,0.002,2996.7,2996.1,0.455]
[1763412341005,0.002,2996.7,2995.6,0.455]
[1763412341291,0.002,2996.7,2995.2,0.455]
[1763412344204,0.3454,2996.6,2995.2,0.455]
[1763412344856,0.3454,2996.6,2994.8,1.17787816]
[1763412344857,0.405504,2996.5,2994.8,0.455]
[1763412345071,0.405504,2996.3,2994.8,0.455]
[1763412345298,0.3454,2996.2,2994.8,0.455]
[1763412346362,0.002,2996.7,2995.2,0.455]
[1763412346764,0.002,2996.7,2995.2,1.36199264]
[1763412346964,0.002,2996.7,2995.3,1.09368021]
[1763412347165,0.002,2996.7,2995.3,1.54868021]
[1763412347365,0.002,2996.7,2995.4,0.455]
[1763412348503,0.002,2996.7,2995.4,0.42486299]
[1763412349403,0.3776,2996.7,2995.4,0.42486299]
[1763412350103,0.002,2996.7,2995.6,10.29980208]
[1763412350267,0.002,2996.7,2995.7,1.42363061]
[1763412350473,0.002,2996.7,2995.7,1.87863061]
[1763412350801,0.002,2996.7,2995.7,0.455]
[1763412351202,0.3756,2996.6,2995.2,2.0848708]
[1763412351416,0.3756,2996.6,2995.2,0.455]
[1763412351711,0.002,2996.7,2995.3,0.455]
[1763412352102,0.3756,2996.6,2995.3,0.455]
[1763412352279,0.3756,2996.6,2995.1,0.182]
[1763412352280,0.405504,2996.5,2995.1,0.182]
[1763412352613,0.405504,2996.3,2994.7,1.17787816]
[1763412352815,0.405504,2996.3,2994.6,1.63287816]
[1763412353000,0.405504,2996.1,2994.6,0.7983532]
[1763412353204,0.405504,2996.1,2994.6,0.455]
[1763412353405,9.39480944,2996.7,2994.6,0.455]
[1763412353406,0.3756,2996.0,2994.6,0.455]
[1763412353801,0.1153,2995.9,2994.6,0.455]
[1763412354003,0.1153,2995.9,2994.4,0.001]
[1763412354004,9.79831344,2995.8,2994.4,0.001]
[1763412354317,10.17391344,2995.8,2994.4,0.001]
[1763412354520,1.40452134,2995.7,2994.4,0.001]
[1763412354688,1.40452134,2995.7,2994.4,0.456]
[1763412354886,0.405504,2995.8,2994.4,0.456]
[1763412355602,0.781104,2995.8,2994.4,0.456]
[1763412356230,0.405504,2995.6,2994.4,0.456]
[1763412356384,0.405504,2995.6,2994.4,0.001]
[1763412356717,0.3756,2995.5,2994.4,0.001]
[1763412357284,0.405504,2995.4,2994.4,0.001]
[1763412358030,0.781104,2995.4,2994.4,0.001]
[1763412358525,0.0527,2994.5,2994.4,0.001]
[1763412358683,0.458204,2994.5,2994.4,0.001]
[1763412358886,1.81890534,2994.5,2994.4,0.001]
[1763412359682,1.03780134,2994.5,2994.4,0.001]
[1763412359895,0.4283,2994.5,2994.4,0.001]
[1763412360296,9.39280944,2995.4,2994.4,0.001]
[1763412360297,0.0527,2994.9,2994.4,0.001]
[1763412360698,0.3756,2994.8,2994.4,0.001]
[1763412360938,9.79831344,2994.7,2994.4,0.001]
[1763412361433,0.405504,2994.5,2994.4,0.001]
[1763412361791,0.3756,2994.5,2994.4,0.001]
[1763412362101,0.3756,2994.5,2993.8,0.001]
[1763412362302,0.0921,2993.9,2993.8,0.001]
[1763412362829,0.4677,2993.9,2993.8,0.001]
[1763412363040,0.873204,2993.9,2993.8,0.001]
[1763412363191,0.405504,2994.5,2993.8,0.001]
[1763412363192,0.3756,2994.5,2993.8,0.001]
[1763412363705,0.0921,2993.9,2993.8,0.001]
[1763412364083,0.873204,2993.9,2993.8,0.001]
[1763412364924,1.89980534,2993.9,2993.8,0.001]
[1763412365086,10.26601344,2993.9,2993.8,0.001]
[1763412365285,0.873204,2993.9,2993.8,0.001]
[1763412365683,0.405504,2993.8,2992.9,0.001]
[1763412365927,0.405504,2993.6,2992.9,0.001]
[1763412366430,0.3756,2993.5,2992.9,0.001]
[1763412366629,0.405504,2993.4,2992.9,0.001]
[1763412366796,0.405504,2993.2,2992.9,0.001]
[1763412366994,0.405504,2993.0,2992.9,0.001]
[1763412367436,0.405504,2993.5,2992.9,0.001]
[1763412367941,0.405504,2993.8,2992.9,0.001]
[1763412368290,0.64290041,2993.9,2992.9,0.001]
[1763412368491,0.405504,2993.7,2992.9,0.001]
[1763412368892,0.405504,2993.5,2992.9,0.001]
[1763412369501,0.405504,2993.3,2992.9,0.001]
[1763412369930,0.45110668,2993.7,2992.9,0.001]
[1763412369931,11.13245554,2993.0,2992.9,0.001]
[1763412370294,11.50805554,2993.0,2992.9,0.001]
[1763412370489,1.31249664,2993.0,2992.9,0.001]
[1763412370705,0.93305041,2993.9,2992.9,0.001]
[1763412370706,0.002,2993.8,2992.9,0.001]
[1763412370992,0.3776,2993.8,2992.9,0.001]
[1763412371188,0.17520951,2993.7,2992.9,0.001]
[1763412371430,0.002,2993.8,2993.0,0.4781]
[1763412371795,0.002,2993.8,2993.1,0.1936]
[1763412372192,0.17517502,2993.7,2993.1,0.6717]
[1763412372394,0.17517502,2993.7,2993.1,0.1936]
[1763412372904,0.17517502,2993.7,2993.1,0.6717]
[1763412373113,0.17517502,2993.7,2992.9,0.001]
[1763412373114,0.405504,2993.6,2992.9,0.001]
[1763412373429,0.17517502,2993.7,2992.9,0.4791]
[1763412375144,0.405504,2993.6,2992.9,0.001]
[1763412378045,0.17517502,2993.7,2993.0,0.4805]
[1763412378244,0.17517502,2993.7,2993.1,0.199]
[1763412378543,0.405504,2993.6,2993.1,0.199]
[1763412378947,10.2254629,2993.4,2992.9,0.001]
[1763412379149,0.405504,2993.2,2992.9,0.001]
[1763412380061,1.96709893,2993.3,2992.6,0.001]
[1763412380062,0.405504,2993.0,2992.6,0.001]
[1763412380268,1.31249664,2992.6,2992.3,0.001]
[1763412380619,0.405504,2992.4,2992.3,0.001]
[1763412381026,0.3756,2992.4,2992.3,0.001]
[1763412381224,0.1153,2993.0,2992.3,0.001]